bitfinex-derivatives/quotes_SOLF0:USTF0_20250528
["timestamp","ask_amount","ask_price","bid_price","bid_amount"]
[1748439220558,5.7474,173.91,173.89,0.03640932]
[1748439220859,0.04140528,173.93,173.89,0.03640932]
[1748439221057,5.7476,173.9,173.89,0.03640932]
[1748439221460,32.40140528,173.93,173.81,2.0037]
[1748439221658,3.962,173.92,173.81,7.754]
[1748439221965,3.962,173.92,173.81,2.0037]
[1748439222662,0.0417985,173.88,173.85,0.04319506]
[1748439223352,5.7489,173.86,173.85,0.04319506]
[1748439224063,32.4017985,173.88,173.78,1.9492]
[1748439224263,32.36,173.88,173.76,38.1122]
[1748439224762,32.36,173.88,173.77,5.7518]
[1748439224959,0.03992583,173.84,173.81,0.04187914]
[1748439226354,0.03992583,173.84,173.83,5.7499]
[1748439228863,5.7484,173.88,173.85,5.749]
[1748439229059,32.36,173.92,173.83,1.9729]
[1748439229263,5.7486,173.88,173.84,5.7495]
[1748439229459,32.36,173.92,173.84,5.7495]
[1748439229865,5.7484,173.88,173.86,0.03696685]
[1748439230465,5.748,173.89,173.86,0.03696685]
[1748439230663,0.043938,173.9,173.86,0.03696685]
[1748439230857,0.043938,173.9,173.87,5.7485]
[1748439231265,0.043938,173.9,173.86,32.39696685]
[1748439231469,0.043938,173.9,173.89,5.7479]
[1748439231770,32.36,173.96,173.86,32.39696685]
[1748439231968,5.7463,173.94,173.86,32.39696685]
[1748439232363,32.36,173.96,173.86,32.39696685]
[1748439232768,0.04087384,173.93,173.92,5.7469]
[1748439232966,0.04087384,173.93,173.86,32.39696685]
[1748439232967,0.04087384,173.93,173.91,0.04191261]
[1748439233870,0.04087384,173.93,173.92,5.7469]
[1748439234373,32.36,174.0,173.91,32.40191261]
[1748439234575,32.36,174.0,173.92,5.7467]
[1748439234868,32.36,174.0,173.91,32.40191261]
[1748439235175,0.03905399,173.97,173.91,32.40191261]
[1748439235574,5.78455399,173.97,173.93,5.7464]
[1748439235762,0.03905399,173.97,173.91,32.40191261]
[1748439237370,5.78435399,173.97,173.94,5.7462]
[1748439237769,0.03905399,173.97,173.91,32.40191261]
[1748439237971,5.7459,173.96,173.93,5.7465]
[1748439238763,0.03905399,173.97,173.91,32.40191261]
[1748439239269,5.7461,173.95,173.91,38.14891261]
[1748439239670,5.7458,173.96,173.93,5.7464]
[1748439239872,0.03905399,173.97,173.91,32.40191261]
[1748439240276,0.03905399,173.97,173.92,4.0059]
[1748439240474,32.34,174.09,173.92,9.7459]
[1748439240678,32.34,174.09,173.95,15.3549833]
[1748439240874,32.34,174.09,173.96,1.9374]
[1748439241276,32.34,174.13,173.97,117.4]
[1748439241483,0.03737312,174.07,174.03,0.04194514]
[1748439242472,0.03737312,174.07,174.05,5.7426]
[1748439243182,0.03737312,174.07,174.03,32.38194514]
[1748439243576,0.03737312,174.07,174.03,0.04194514]
[1748439243785,5.743,174.04,174.03,0.04194514]
[1748439245078,0.03737312,174.07,174.03,0.04194514]
[1748439246788,32.37737312,174.07,174.03,0.04194514]
[1748439246983,32.37737312,174.07,173.98,32.34]
[1748439247282,32.37737312,174.07,173.96,1.9374]
[1748439247488,1.902,174.06,173.96,7.683]
[1748439247675,1.902,174.06,173.96,1.9374]
[1748439248084,1.902,174.06,173.99,0.03935944]
[1748439248085,5.7443,174.0,173.99,0.03935944]
[1748439249781,32.4,174.02,173.89,3.8184]
[1748439250086,25.68104646,174.01,173.88,32.4]
[1748439250789,0.04248874,173.96,173.93,0.04271241]
[1748439251785,496.32,174.04,173.93,0.04271241]
[1748439251983,32.4,174.03,173.94,32.4]
[1748439252387,32.4,174.03,173.95,32.4]
[1748439252881,0.04277424,174.01,173.98,5.7449]
[1748439253184,0.04277424,174.01,173.97,0.04243463]
[1748439254088,0.04277424,174.01,173.97,5.78763463]
[1748439254287,0.04277424,174.01,173.97,0.04243463]
[1748439254595,32.4,174.1,173.97,0.04243463]
[1748439254888,32.4,174.1,173.96,27.59464646]
[1748439255193,32.4,174.1,174.01,5.7437]
[1748439255390,32.4,174.1,174.04,0.0394559]
[1748439255589,0.03868595,174.07,174.04,0.0394559]
[1748439256093,5.7426,174.05,174.04,0.0394559]
[1748439256295,5.6873,174.06,173.97,5.7452]
[1748439256593,32.4,174.05,173.97,5.7452]
[1748439256896,32.4,174.05,173.96,32.4]
[1748439257290,5.78742161,174.02,173.99,0.0419625]
[1748439257488,0.04352161,174.02,173.99,0.0419625]
[1748439258696,0.04352161,174.02,174.01,5.744]
[1748439259287,0.04352161,174.02,173.99,0.0419625]
[1748439259895,5.7443,174.0,173.99,0.0419625]
[1748439260586,5.7441,174.01,173.99,0.0419625]
[1748439260786,0.04352161,174.02,173.99,0.0419625]
[1748439261592,0.04352161,174.02,173.99,5.7863625]
[1748439261992,0.04352161,174.02,173.99,0.0419625]
[1748439263799,1.8983,174.1,173.99,0.0419625]
[1748439263996,5.7423,174.06,174.03,5.7431]
[1748439264500,5.743,174.05,174.02,32.4]
[1748439264997,5.7856134,174.05,174.02,32.43810775]
[1748439265197,5.7431,174.04,174.02,32.43810775]
[1748439265400,0.0426134,174.05,174.02,38.18170775]
[1748439265593,0.0426134,174.05,174.02,32.43810775]
[1748439267595,0.0426134,174.05,174.03,5.7433]
[1748439268187,0.0426134,174.05,174.04,5.743]
[1748439268597,32.4,174.12,174.02,35.84095644]
[1748439268795,32.4,174.12,174.03,4.03597914]
[1748439269000,13.5261,174.18,174.04,2.14136909]
[1748439269001,34.2821,174.16,174.04,2.14136909]
[1748439269392,5.7401,174.13,174.04,2.14136909]
[1748439269597,0.04051623,174.1,174.07,0.0375074]
[1748439269899,0.04051623,174.1,174.07,32.4375074]
[1748439270200,0.04051623,174.1,174.07,38.1794074]
[1748439271000,0.04051623,174.1,174.08,5.7416]
[1748439271494,0.04051623,174.1,174.09,5.7413]
[1748439272097,0.04051623,174.1,174.08,5.7416]
[1748439272298,0.04051623,174.1,174.07,32.4375074]
[1748439272699,0.04051623,174.1,174.08,5.7417]
[1748439273303,0.04051623,174.1,174.09,5.7413]
[1748439274503,0.04051623,174.1,174.08,5.7416]
[1748439274799,0.04051623,174.1,174.07,32.4375074]
[1748439275804,0.04051623,174.1,174.09,5.7413]
[1748439276200,2.0491,174.18,174.07,32.4375074]
[1748439276500,2.0491,174.18,174.08,1.9006]
[1748439277097,34.3566,174.24,174.09,17.46513137]
[1748439277306,0.04109522,174.18,174.15,0.04375012]
[1748439277497,0.04109522,174.18,174.17,5.7385]
[1748439277699,0.04109522,174.18,174.16,32.38]
[1748439277896,5.77959522,174.18,174.16,32.38]
[1748439278093,0.04109522,174.18,174.16,32.38]
[1748439278606,5.77969522,174.18,174.16,32.38]
[1748439279091,5.7387,174.17,174.16,32.38]
[1748439281695,5.739,174.16,174.15,0.04375012]
[1748439282413,5.7388,174.17,174.15,0.04375012]
[1748439283010,5.739,174.16,174.15,0.04375012]
[1748439283302,0.04109522,174.18,174.15,0.04375012]
[1748439284510,5.7388,174.17,174.15,0.04375012]
[1748439284801,0.04109522,174.18,174.15,0.04375012]
[1748439285003,5.739,174.16,174.15,0.04375012]
[1748439285210,0.04109522,174.18,174.15,0.04375012]
[1748439285706,5.739,174.16,174.15,0.04375012]
[1748439286107,5.7388,174.17,174.15,0.04375012]
[1748439286407,0.04109522,174.18,174.15,0.04375012]
[1748439286599,5.77949522,174.18,174.15,0.04375012]
[1748439286798,0.04109522,174.18,174.15,0.04375012]
[1748439287197,0.04109522,174.18,174.16,5.739]
[1748439287908,0.04109522,174.18,174.17,5.7387]
[1748439288310,34.3566,174.24,174.21,5.7373]
[1748439288311,32.38,174.24,174.21,5.7373]
[1748439288606,2.025,174.26,174.21,5.7373]
[1748439288802,5.7368,174.23,174.2,5.7374]
[1748439289305,0.03803277,174.23,174.2,0.043859]
[1748439291001,0.03803277,174.23,174.21,5.7374]
[1748439291301,0.03803277,174.23,174.2,0.043859]
[1748439291706,2.0676,174.3,174.2,0.043859]
[1748439292307,5.7358,174.26,174.2,0.043859]
[1748439292616,2.0676,174.3,174.2,0.043859]
[1748439292813,0.03788768,174.27,174.2,5.781459]
[1748439293106,0.03788768,174.27,174.2,0.043859]
[1748439293304,5.7358,174.26,174.22,5.737]
[1748439293705,0.03788768,174.27,174.2,0.043859]
[1748439294314,0.03788768,174.27,174.26,5.7357]
[1748439294511,0.03788768,174.27,174.25,0.04092297]
[1748439294719,0.03788768,174.27,174.24,0.04367093]
[1748439294916,0.03788768,174.27,174.26,5.7357]
[1748439295115,1.8763,174.35,174.25,32.38]
[1748439295313,5.7333,174.34,174.25,32.38]
[1748439295610,38.1682,174.41,174.26,3.9165]
[1748439296117,5.7321,174.37,174.34,5.7328]
[1748439296314,32.38,174.41,174.32,32.42380115]
[1748439296614,5.7318,174.38,174.34,5.7331]
[1748439296806,5.7318,174.38,174.34,0.04026119]
[1748439297205,5.7312,174.4,174.34,0.04026119]
[1748439297512,32.38,174.45,174.36,5.7324]
[1748439297708,5.7311,174.4,174.39,0.03752367]
[1748439298108,32.38,174.45,174.39,0.03752367]
[1748439298913,5.7311,174.4,174.39,0.03752367]
[1748439299616,5.7774,174.47,174.39,0.03752367]
[1748439299811,3.8564,174.47,174.39,0.03752367]
[1748439300919,3.8564,174.47,174.4,5.7311]
[1748439301114,3.8564,174.47,174.39,0.03752367]
[1748439301316,33.7,174.49,174.39,0.03752367]
[1748439301519,5.7294,174.46,174.42,5.7303]
[1748439301720,33.7,174.49,174.42,0.03877659]
[1748439301918,5.7294,174.46,174.42,0.03877659]
[1748439302211,33.7,174.49,174.42,33.73877659]
[1748439302619,5.7294,174.46,174.42,39.46917659]
[1748439302817,4.1278,174.52,174.42,33.73877659]
[1748439303719,4.1278,174.52,174.43,2.0516]
[1748439303913,4.1278,174.52,174.46,0.04384221]
[1748439305013,5.7288,174.47,174.46,0.04384221]
[1748439305323,15.32740024,174.47,174.32,33.68]
[1748439305526,5.7324,174.37,174.32,39.4135]
[1748439305717,33.68,174.43,174.31,33.68]
[1748439306318,0.03662118,174.39,174.35,0.04103012]
[1748439306520,15.32740024,174.36,174.17,3.40284869]
[1748439306820,33.68,174.35,174.15,33.68]
[1748439307019,5.7354,174.27,174.22,5.737]
[1748439307419,0.03879403,174.26,174.23,0.03970224]
[1748439307619,0.03747831,174.26,174.23,0.04196556]
[1748439308121,0.03747831,174.26,174.24,5.7364]
[1748439308513,0.03747831,174.26,174.23,0.04196556]
[1748439308915,2.02,174.34,174.23,0.04196556]
[1748439309117,2.02,174.34,174.21,33.68]
[1748439309324,2.02,174.34,174.27,5.7353]
[1748439309515,33.68,174.39,174.27,33.68]
[1748439309721,35.5638,174.39,174.27,33.68]
[1748439309920,1.8838,174.39,174.27,59.22973379]
[1748439310228,1.8838,174.39,174.31,0.04038601]
[1748439310229,0.03841532,174.35,174.31,0.04038601]
[1748439310414,5.7338,174.32,174.31,0.04038601]
[1748439311229,5.7336,174.33,174.31,0.04038601]
[1748439311417,0.03841532,174.35,174.31,33.72038601]
[1748439311824,0.03841532,174.35,174.34,5.7331]
[1748439312319,3.8149,174.42,174.36,5.7323]
[1748439312521,5.7309,174.41,174.36,39.4323]
[1748439312721,1.9376,174.42,174.36,33.7]
[1748439312916,1.9172,174.46,174.38,5.7316]
[1748439313427,1.9172,174.46,174.36,33.7]
[1748439313428,1.9172,174.46,174.4,0.03693987]
[1748439313924,1.9172,174.46,174.41,33.7]
[1748439314316,5.7304,174.43,174.41,33.7]
[1748439314522,1.9172,174.46,174.41,33.7]
[1748439315517,1.9172,174.46,174.4,0.03693987]
[1748439315925,5.7308,174.41,174.4,0.03693987]
[1748439316123,25.54973379,174.44,174.34,35.04]
[1748439316323,25.54973379,174.44,174.31,495.34]
[1748439316629,25.54973379,174.44,174.33,35.04]
[1748439317026,0.04036353,174.4,174.37,0.03940843]
[1748439317228,0.04036353,174.4,174.33,35.04]
[1748439317626,5.7326,174.36,174.33,35.04]
[1748439317935,25.54973379,174.44,174.31,530.38]
[1748439318122,5.7331,174.35,174.31,530.38]
[1748439318327,25.54973379,174.44,174.31,530.38]
[1748439318328,25.54973379,174.44,174.31,495.34]
[1748439318730,0.03960256,174.39,174.36,0.04098335]
[1748439319432,5.7321,174.37,174.36,0.04098335]
[1748439319632,5.7321,174.37,174.36,8.335e-05]
[1748439324030,0.03960256,174.39,174.36,8.335e-05]
[1748439325438,35.04,174.49,174.37,35.04]
[1748439325632,5.7293,174.46,174.4,5.7311]
[1748439325835,35.04,174.49,174.37,37.0715]
[1748439326136,5.7288,174.48,174.42,5.7302]
[1748439326434,0.03777318,174.47,174.43,0.04376342]
[1748439327630,0.03777318,174.47,174.44,35.04]
[1748439328736,0.03777318,174.47,174.44,40.7698]
[1748439328937,0.03777318,174.47,174.44,35.04]
[1748439329133,0.03777318,174.47,174.44,40.7698]
[1748439329332,0.03777318,174.47,174.44,35.04]
[1748439332332,5.7295,174.46,174.43,0.04376342]
[1748439332539,0.03777318,174.47,174.43,0.04376342]
[1748439333436,5.7296,174.45,174.43,0.04376342]
[1748439333939,0.03777318,174.47,174.43,0.04376342]
[1748439334135,0.03777318,174.47,174.35,35.02]
[1748439334340,15.26723703,174.49,174.35,35.02]
[1748439334539,17.28213703,174.51,174.35,35.02]
[1748439335141,0.04065329,174.45,174.41,0.04242765]
[1748439335634,5.7301,174.44,174.41,0.04242765]
[1748439336041,0.04065329,174.45,174.41,0.04242765]
[1748439339251,5.77025329,174.45,174.41,0.04242765]
[1748439339444,0.04065329,174.45,174.41,0.04242765]
[1748439340444,5.7305,174.42,174.41,0.04242765]
[1748439340746,0.04065329,174.45,174.41,0.04242765]
[1748439340943,5.7305,174.42,174.41,0.04242765]
[1748439341340,0.04065329,174.45,174.34,532.42]
[1748439341544,15.26723703,174.43,174.32,2.0038]
[1748439341848,15.26723703,174.43,174.3,37.08]
[1748439342247,37.08,174.42,174.3,37.08]
[1748439342445,37.08,174.42,174.34,0.04043884]
[1748439342446,5.7328,174.35,174.34,0.04043884]
[1748439342950,0.03746879,174.38,174.26,37.08]
[1748439343146,5.7339,174.32,174.27,5.7354]
[1748439343650,37.08,174.35,174.26,37.08]
[1748439344038,0.03711968,174.32,174.29,0.04352265]
[1748439347543,0.03711968,174.32,174.31,5.7341]
[1748439349658,0.03711968,174.32,174.29,0.04352265]
[1748439351458,5.7345,174.3,174.29,0.04352265]
[1748439351660,0.03711968,174.32,174.21,37.1]
[1748439351851,15.26723703,174.33,174.21,42.8372]
[1748439352450,15.26723703,174.33,174.22,5.7369]
[1748439352860,0.0374379,174.29,174.26,0.04033891]
[1748439353254,5.7356,174.27,174.26,0.04033891]
[1748439353955,0.0374379,174.29,174.26,0.04033891]
[1748439354756,5.7722379,174.29,174.26,0.04033891]
[1748439355152,5.7354,174.28,174.26,0.04033891]
[1748439355352,0.0374379,174.29,174.26,0.04033891]
[1748439355555,37.1374379,174.29,174.26,0.04033891]
[1748439357553,0.0374379,174.29,174.26,5.77583891]
[1748439357759,0.0374379,174.29,174.26,0.04033891]
[1748439358159,0.0374379,174.29,174.27,5.7353]
[1748439358666,0.0374379,174.29,174.26,0.04033891]
[1748439360849,0.0374379,174.29,174.27,5.7354]
[1748439361055,0.0374379,174.29,174.26,0.04033891]
[1748439361363,37.12,174.37,174.27,37.12]
[1748439361660,37.12,174.37,174.28,3.987]
[1748439362257,0.0414468,174.34,174.31,0.04017831]
[1748439362472,5.7338,174.32,174.31,0.04017831]
[1748439363756,5.7338,174.32,174.31,7.831e-05]
[1748439363964,37.12,174.32,174.22,41.1091]
[1748439364667,36.34,174.36,174.26,5.7356]
[1748439364863,0.04121246,174.33,174.29,0.04043629]
[1748439365063,5.7347,174.3,174.29,0.04043629]
[1748439365264,0.04121246,174.33,174.29,0.04043629]
[1748439366770,5.7338,174.32,174.29,0.04043629]
[1748439367264,0.04121246,174.33,174.29,0.04043629]
[1748439367872,5.7341,174.31,174.29,0.04043629]
[1748439368065,0.04121246,174.33,174.29,0.04043629]
[1748439369071,5.77471246,174.33,174.29,0.04043629]
[1748439369371,5.77471246,174.33,174.29,5.77513629]
[1748439369568,0.04121246,174.33,174.29,0.04043629]
[1748439369764,531.64,174.4,174.32,5.7338]
[1748439370065,36.34,174.4,174.3,4.0247]
[1748439370868,0.04272207,174.37,174.33,0.04314815]
[1748439371773,5.7331,174.34,174.33,0.04314815]
[1748439376771,0.04272207,174.37,174.33,0.04314815]
[1748439377676,0.04272207,174.37,174.33,5.77644815]
[1748439377972,0.04272207,174.37,174.33,0.04314815]
[1748439378670,5.7331,174.34,174.33,0.04314815]
[1748439381270,5.7331,174.34,174.25,495.36]
[1748439381470,36.34,174.33,174.24,5.9108]
[1748439381677,36.34,174.33,174.22,36.34]
[1748439381875,5.7361,174.25,174.22,36.34]
[1748439382172,36.34,174.32,174.22,36.34]
[1748439382379,0.04038399,174.29,174.25,0.04027796]
[1748439383279,0.04038399,174.29,174.27,5.7354]
[1748439383476,0.04038399,174.29,174.25,0.04027796]
[1748439384868,5.7355,174.27,174.25,0.04027796]
[1748439385072,0.04038399,174.29,174.25,0.04027796]
[1748439386782,5.7358,174.26,174.25,0.04027796]
[1748439387675,5.7356,174.27,174.25,0.04027796]
[1748439387979,0.04038399,174.29,174.25,0.04027796]
[1748439388283,5.7358,174.26,174.25,0.04027796]
[1748439388778,0.04038399,174.29,174.25,0.04027796]
[1748439390071,5.7357,174.27,174.25,0.04027796]
[1748439390484,0.04038399,174.29,174.25,0.04027796]
[1748439391381,5.7356,174.27,174.25,0.04027796]
[1748439391978,5.7352,174.28,174.25,0.04027796]
[1748439392185,0.04038399,174.29,174.25,0.04027796]
[1748439392488,5.7352,174.28,174.25,0.04027796]
[1748439392679,0.04038399,174.29,174.25,0.04027796]
[1748439393282,5.7356,174.27,174.25,0.04027796]
[1748439393786,5.7352,174.28,174.25,5.77637796]
[1748439393984,0.04038399,174.29,174.25,0.04027796]
[1748439395275,5.7356,174.27,174.25,0.04027796]
[1748439395885,5.7352,174.28,174.25,0.04027796]
[1748439396482,5.7355,174.27,174.25,0.04027796]
[1748439396684,0.04038399,174.29,174.25,0.04027796]
[1748439397384,5.7356,174.27,174.25,0.04027796]
[1748439398883,5.7352,174.28,174.25,0.04027796]
[1748439399082,0.04038399,174.29,174.25,0.04027796]
[1748439400382,35.40038399,174.29,174.19,5.9258]
[1748439400688,15.26723703,174.27,174.15,3.40284869]
[1748439400885,5.7383,174.19,174.15,5.7392]
[1748439401190,2.0402,174.26,174.14,35.36]
[1748439401398,0.04103857,174.22,174.18,0.040166]
[1748439401884,5.7381,174.19,174.18,0.040166]
[1748439402094,15.26723703,174.19,174.08,530.86]
[1748439402383,5.7396,174.15,174.09,5.7413]
[1748439402588,35.38,174.18,174.08,35.36]
[1748439403088,0.03991165,174.15,174.11,0.0361908]
[1748439404094,0.03991165,174.15,174.12,5.7403]
[1748439404381,0.03991165,174.15,174.11,0.0361908]
[1748439404778,0.03991165,174.15,174.12,5.7403]
[1748439404978,0.03991165,174.15,174.11,0.0361908]
[1748439405284,0.03991165,174.15,174.11,5.7767908]
[1748439405484,0.03991165,174.15,174.11,0.0361908]
[1748439405686,5.77931165,174.15,174.11,0.0361908]
[1748439406489,0.03991165,174.15,174.11,0.0361908]
[1748439409284,0.03991165,174.15,174.12,5.7403]
[1748439409989,0.03991165,174.15,174.11,0.0361908]
[1748439411187,0.03991165,174.15,174.14,5.7397]
[1748439411594,0.03991165,174.15,174.11,0.0361908]
[1748439412485,0.03991165,174.15,174.13,5.7397]
[1748439413185,0.03991165,174.15,174.11,0.0361908]
[1748439413186,0.03991165,174.15,174.14,5.7397]
[1748439414995,35.38,174.22,174.17,5.7384]
[1748439415383,15.26723703,174.25,174.17,5.7384]
[1748439415588,37.4202,174.26,174.14,2.0414]
[1748439415788,37.4202,174.26,174.15,3.8631]
[1748439415995,5.7376,174.21,174.19,0.04197354]
[1748439416190,0.04031618,174.22,174.19,0.04197354]
[1748439416596,5.7377,174.2,174.19,0.04197354]
[1748439416785,0.04031618,174.22,174.11,531.16]
[1748439416989,15.26723703,174.23,174.11,531.16]
[1748439417189,5.7393,174.16,174.12,5.7401]
[1748439417386,37.4202,174.26,174.11,531.16]
[1748439417697,5.7386,174.18,174.17,0.04341325]
[1748439419603,0.04384412,174.2,174.17,0.04341325]
[1748439420493,0.04384412,174.2,174.19,5.738]
[1748439420900,0.04384412,174.2,174.17,5.91751325]
[1748439421893,0.04384412,174.2,174.17,1.94661325]
[1748439422094,0.04384412,174.2,174.17,0.04341325]
[1748439422295,5.7383,174.19,174.17,0.04341325]
[1748439422593,0.04384412,174.2,174.17,0.04341325]
[1748439422793,15.26723703,174.18,174.08,35.38]
[1748439422989,3.8754,174.17,174.08,35.38]
[1748439423203,35.38,174.16,174.07,7.7187]
[1748439423411,5.7404,174.12,174.07,7.7187]
[1748439423592,35.38,174.16,174.08,5.7416]
[1748439423794,0.03623552,174.11,174.08,0.03625735]
[1748439424103,0.03623552,174.11,174.1,5.741]
[1748439424692,35.38,174.2,174.09,35.38]
[1748439425198,5.7381,174.19,174.09,35.38]
[1748439425395,5.7381,174.19,174.14,5.7396]
[1748439425797,0.03884862,174.18,174.15,0.03635142]
[1748439426003,5.77734862,174.18,174.15,0.03635142]
[1748439427097,0.03884862,174.18,174.15,0.03635142]
[1748439427608,5.77754862,174.18,174.15,0.03635142]
[1748439427902,0.03884862,174.18,174.15,0.03635142]
[1748439428203,5.739,174.16,174.15,0.03635142]
[1748439428702,0.03884862,174.18,174.15,0.03635142]
[1748439428899,5.77724862,174.18,174.15,0.03635142]
[1748439429100,0.03884862,174.18,174.15,0.03635142]
[1748439429401,5.739,174.17,174.15,0.03635142]
[1748439429791,0.03884862,174.18,174.15,0.03635142]
[1748439430299,15.26723703,174.17,174.06,40.6421]
[1748439430498,35.38,174.2,174.06,34.9]
[1748439430693,50.64723703,174.2,174.06,34.9]
[1748439430997,5.7404,174.12,174.06,34.9]
[1748439431301,0.04371395,174.11,174.07,0.04060263]
[1748439431503,0.03933022,174.11,174.07,0.04043734]
[1748439432103,0.03933022,174.11,174.08,5.7416]
[1748439432803,0.03933022,174.11,174.07,0.04043734]
[1748439433309,0.03933022,174.11,174.09,5.7411]
[1748439433702,0.03933022,174.11,174.07,0.04043734]
[1748439433903,0.03933022,174.11,174.1,5.741]
[1748439435007,0.03933022,174.11,174.08,1.9277]
[1748439435215,35.38,174.2,174.08,1.9277]
[1748439435507,35.38,174.2,174.08,5.33054869]
[1748439435709,5.7388,174.17,174.09,2.10623692]
[1748439435896,35.38,174.2,174.1,3.40284869]
[1748439436199,35.38,174.2,174.13,5.78324088]
[1748439436200,0.03834342,174.17,174.13,5.78324088]
[1748439436407,0.03834342,174.17,174.13,0.04344088]
[1748439436804,5.7396,174.15,174.13,0.04344088]
[1748439437308,0.03834342,174.17,174.13,0.04344088]
[1748439438100,5.7391,174.16,174.13,0.04344088]
[1748439438799,5.7397,174.14,174.13,0.04344088]
[1748439439107,0.03834342,174.17,174.13,0.04344088]
[1748439439806,0.03834342,174.17,174.14,5.7396]
[1748439440010,0.03834342,174.17,174.13,0.04344088]
[1748439440403,0.03834342,174.17,174.16,5.739]
[1748439441202,0.03834342,174.17,174.15,5.7393]
[1748439441408,0.03834342,174.17,174.13,0.04344088]
[1748439441606,0.03834342,174.17,174.13,2.10464088]
[1748439441800,0.03834342,174.17,174.16,5.739]
[1748439443511,0.03834342,174.17,174.14,5.7396]
[1748439443706,0.03834342,174.17,174.13,2.10464088]
[1748439444008,0.03834342,174.17,174.16,5.739]
[1748439445510,5.7372,174.22,174.19,5.7379]
[1748439445711,34.92,174.24,174.16,34.9]
[1748439446107,5.7379,174.2,174.17,5.7387]
[1748439446513,0.04200872,174.2,174.17,0.04125216]
[1748439447209,0.04200872,174.2,174.19,5.7381]
[1748439447911,36.8529,174.28,174.17,0.04125216]
[1748439448113,34.9,174.28,174.17,2.10557106]
[1748439448413,36.9289,174.32,174.17,3.40284869]
[1748439448612,34.9,174.36,174.21,3.40284869]
[1748439448910,0.0388213,174.3,174.27,0.04398143]
[1748439450217,0.0388213,174.3,174.27,8.143e-05]
[1748439450516,5.7351,174.28,174.27,8.143e-05]
[1748439451710,5.74,174.28,174.18,34.9]
[1748439452006,5.8475,174.3,174.18,34.9]
[1748439452207,11.4657,174.35,174.18,34.9]
[1748439452208,5.7339,174.32,174.18,34.9]
[1748439452408,34.9,174.35,174.2,15.26723703]
[1748439452608,0.04118678,174.29,174.26,0.03889701]
[1748439453202,0.04118678,174.29,174.28,5.7351]
[1748439455210,34.9,174.35,174.32,5.7337]
[1748439455413,35.16,174.39,174.28,35.16]
[1748439455714,3.825,174.4,174.35,5.7325]
[1748439455915,5.7315,174.39,174.35,5.7325]
[1748439456105,35.16,174.41,174.28,50.42723703]
[1748439456306,0.04065375,174.36,174.35,5.7327]
[1748439456510,0.04094384,174.37,174.35,5.7327]
[1748439456906,0.04094384,174.37,174.33,35.17991378]
[1748439457313,0.04094384,174.37,174.33,0.03991378]
[1748439457508,5.7331,174.34,174.33,0.03991378]
[1748439459012,5.7344,174.3,174.25,532.6403]
[1748439459315,37.1092,174.36,174.25,35.14]
[1748439459520,1.9861,174.35,174.25,35.14]
[1748439459817,1.9861,174.35,174.21,35.14]
[1748439460121,0.04209682,174.3,174.26,0.04363224]
[1748439460515,0.04209682,174.3,174.21,35.14]
[1748439460516,35.18209682,174.3,174.21,35.14]
[1748439460712,5.737,174.23,174.18,4.088]
[1748439460916,35.14,174.3,174.18,4.088]
[1748439461319,5.7357,174.27,174.18,4.088]
[1748439461519,0.04271958,174.24,174.21,5.78031956]
[1748439461819,0.04271958,174.24,174.21,0.04321956]
[1748439462817,0.04271958,174.24,174.23,5.7367]
[1748439463718,37.0505,174.34,174.27,5.7354]
[1748439464112,37.0505,174.34,174.23,2.0477]
[1748439464319,5.7346,174.3,174.26,5.7356]
[1748439464721,0.04408269,174.3,174.26,0.0419416]
[1748439467422,5.7348,174.29,174.26,5.7775416]
[1748439467622,0.04408269,174.3,174.26,5.7775416]
[1748439467623,0.04408269,174.3,174.26,0.0419416]
[1748439467820,5.7351,174.28,174.26,0.0419416]
[1748439468020,0.04408269,174.3,174.26,0.0419416]
[1748439468221,50.40723703,174.29,174.15,1.9115]
[1748439468419,15.26723703,174.25,174.14,35.14]
[1748439468613,4.1292,174.24,174.14,35.14]
[1748439468821,5.7388,174.17,174.14,35.14]
[1748439469318,0.0437718,174.17,174.14,35.17778154]
[1748439470023,0.0437718,174.17,174.16,5.739]
[1748439472730,0.0437718,174.17,174.15,5.7392]